lending/lending_fUSD_20250917
["ID","MTS","AMOUNT","RATE_DAILY","PERIOD"]
[385931227,1758137432235,-106.95383778,0.000206,2]
[385931228,1758137432245,-250.0,0.0002099,2]
[385931229,1758137432255,-266.24,0.00021024,2]
[385931230,1758137432265,-666.0,0.00021089,3]
[385931231,1758137432275,-163.43,0.00021314,2]
[385931232,1758137432284,-1200.0,0.000215,2]
[385931233,1758137432294,-212.05621273,0.00021501,2]
[385931234,1758137432305,-150.0,0.00021501,2]
[385931235,1758137432314,-241.43164204,0.00021501,2]
[385931236,1758137432324,-226.59804353,0.00021501,2]
[385931237,1758137432333,-285.52399231,0.00021501,2]
[385931238,1758137432343,-150.0,0.00021501,2]
[385931239,1758137432353,-276.95742598,0.00021501,2]
[385931240,1758137432363,-158.76669661,0.00021501,2]
[385931241,1758137432372,-289.75159624,0.00021501,2]
[385931242,1758137432382,-166.27361538,0.00021817,2]
[385931243,1758137432392,-166.41,0.00021822,2]
[385931245,1758137432402,-250.0,0.00021916,2]
[385931247,1758137432415,-152.7199758,0.00021917,2]
[385931250,1758137432440,-247.2800242,0.00021917,2]
[385931251,1758137432450,-400.0,0.00021917,2]
[385931253,1758137432460,-400.0,0.00021917,2]
[385931255,1758137432470,-1.47146559,0.00021917,2]
[385931256,1758137432517,-398.52853441,0.00021917,2]
[385931257,1758137432527,-400.0,0.00021917,2]
[385931258,1758137432537,-400.0,0.00021917,2]
[385931259,1758137432547,-602.7,0.00021917,2]
[385931260,1758137432557,-400.0,0.00021917,2]
[385931261,1758137432567,-435.38,0.00021917,2]
[385931262,1758137432578,-400.0,0.00021917,2]
[385931264,1758137432587,-400.0,0.00021917,2]
[385931266,1758137432597,-400.0,0.00021917,2]
[385931268,1758137432606,-349.74318115,0.00021917,2]
[385931271,1758137432617,-50.25681885,0.00021917,2]
[385931273,1758137432627,-400.0,0.00021917,2]
[385931275,1758137432637,-344.86596395,0.00021917,2]
[385931338,1758137438225,-55.13403605,0.00021917,2]
[385931339,1758137438235,-400.0,0.00021917,2]
[385931340,1758137438244,-3002.02,0.00021917,2]
[385931341,1758137438253,-400.0,0.00021917,2]
[385931342,1758137438263,-400.0,0.00021917,2]
[385931343,1758137438273,-400.0,0.00021917,2]
[385931344,1758137438282,-400.0,0.00021917,2]
[385931345,1758137438292,-73.07596395,0.00021917,2]
[385931346,1758137438307,-326.92403605,0.00021917,2]
[385931347,1758137438316,-435.88800569,0.00021917,2]
[385931348,1758137438326,-400.0,0.00021917,2]
[385931349,1758137438336,-400.0,0.00021917,2]
[385931350,1758137438345,-240.78678884,0.00021917,2]
[385931525,1758137440096,-159.21321116,0.00021917,2]
[385931527,1758137440106,-400.0,0.00021917,2]
[385931529,1758137440116,-400.0,0.00021917,2]
[385931531,1758137440125,-400.0,0.00021917,2]
[385931533,1758137440135,-400.0,0.00021917,2]
[385931535,1758137440144,-400.0,0.00021917,2]
[385931537,1758137440153,-400.0,0.00021917,2]
[385931539,1758137440162,-400.0,0.00021917,2]
[385931541,1758137440172,-400.0,0.00021917,2]
[385931544,1758137440182,-400.0,0.00021917,2]
[385931546,1758137440192,-450.53,0.00021917,2]
[385931548,1758137440201,-400.0,0.00021917,2]
[385931550,1758137440210,-400.0,0.00021917,2]
[385931552,1758137440219,-400.0,0.00021917,2]
[385931554,1758137440229,-400.0,0.00021917,2]
[385931556,1758137440238,-400.0,0.00021917,2]
[385931558,1758137440248,-400.0,0.00021917,2]
[385931560,1758137440257,-400.0,0.00021917,2]
[385931562,1758137440266,-400.0,0.00021917,2]
[385931563,1758137440276,-400.0,0.00021917,2]
[385931565,1758137440285,-400.0,0.00021917,2]
[385931567,1758137440294,-400.0,0.00021917,2]
[385931569,1758137440303,-403.85,0.00021917,2]
[385931571,1758137440313,-531.56,0.00021917,2]
[385931574,1758137440323,-747.86,0.00021917,2]
[385931576,1758137440332,-671.74,0.00021917,2]
[385931578,1758137440341,-400.0,0.00021917,2]
[385931580,1758137440351,-400.0,0.00021917,2]
[385931582,1758137440360,-400.0,0.00021917,2]
[385931584,1758137440369,-400.0,0.00021917,2]
[385931586,1758137440378,-400.0,0.00021917,2]
[385931588,1758137440387,-400.0,0.00021917,2]
[385931590,1758137440396,-400.0,0.00021917,2]
[385931592,1758137440406,-3263.67,0.00021917,2]
[385931594,1758137440415,-400.0,0.00021917,2]
[385931596,1758137440424,-400.0,0.00021917,2]
[385931598,1758137440433,-493.88,0.00021917,2]
[385931600,1758137440442,-568.43,0.00021917,2]
[385931602,1758137440451,-400.0,0.00021917,2]
[385931604,1758137440461,-400.0,0.00021917,2]
[385931606,1758137440470,-454.87,0.00021917,2]
[385931607,1758137440479,-400.0,0.00021917,2]
[385931610,1758137440489,-400.0,0.00021917,2]
[385931612,1758137440498,-427.05,0.00021917,2]
[385931613,1758137440508,-400.0,0.00021917,2]
[385931616,1758137440518,-400.0,0.00021917,2]
[385931618,1758137440528,-688.11,0.00021917,2]
[385931620,1758137440539,-461.23,0.00021917,2]
[385931622,1758137440548,-400.0,0.00021917,2]
[385931624,1758137440558,-400.0,0.00021917,2]
[385931626,1758137440567,-445.65,0.00021917,2]
[385931628,1758137440577,-569.96,0.00021917,2]
[385931630,1758137440586,-441.98,0.00021917,2]
[385931632,1758137440596,-400.0,0.00021917,2]
[385931634,1758137440605,-454.48,0.00021917,2]
[385931636,1758137440615,-463.35,0.00021917,2]
[385931638,1758137440624,-400.0,0.00021917,2]
[385931640,1758137440634,-400.0,0.00021917,2]
[385931642,1758137440644,-400.0,0.00021917,2]
[385931644,1758137440653,-400.0,0.00021917,2]
[385931646,1758137440663,-400.0,0.00021917,2]
[385931648,1758137440674,-492.3,0.00021917,2]
[385931650,1758137440683,-677.36,0.00021917,2]
[385931652,1758137440693,-400.0,0.00021917,2]
[385931654,1758137440702,-400.0,0.00021917,2]
[385931656,1758137440710,-413.4,0.00021917,2]
[385931658,1758137440720,-400.0,0.00021917,2]
[385931660,1758137440728,-400.0,0.00021917,2]
[385931662,1758137440738,-400.0,0.00021917,2]
[385931664,1758137440747,-400.0,0.00021917,2]
[385931666,1758137440756,-796.26,0.00021917,2]
[385931668,1758137440765,-400.0,0.00021917,2]
[385931670,1758137440775,-400.0,0.00021917,2]
[385931672,1758137440784,-400.0,0.00021917,2]
[385931674,1758137440793,-2727.12,0.00021917,2]
[385931676,1758137440805,-400.0,0.00021917,2]
[385931678,1758137440817,-400.0,0.00021917,2]
[385931680,1758137440826,-518.36,0.00021917,2]
[385931682,1758137440835,-400.0,0.00021917,2]
[385931684,1758137440845,-469.33,0.00021917,2]
[385931686,1758137440854,-400.0,0.00021917,2]
[385931688,1758137440864,-400.0,0.00021917,2]
[385931690,1758137440874,-400.0,0.00021917,2]
[385931692,1758137440884,-400.0,0.00021917,2]
[385931694,1758137440893,-400.0,0.00021917,2]
[385931696,1758137440903,-400.0,0.00021917,2]
[385931698,1758137440912,-400.0,0.00021917,2]
[385931700,1758137440922,-400.0,0.00021917,2]
[385931702,1758137440931,-586.66,0.00021917,2]
[385931704,1758137440941,-430.47,0.00021917,2]
[385931706,1758137440949,-400.0,0.00021917,2]
[385931708,1758137440959,-500.0,0.00021973,2]
[385931710,1758137440968,-500.0,0.00021986,2]
[385931713,1758137440982,-435.94128359,0.00021986,2]
[385931715,1758137440993,-151.0,0.00021986,2]
[385931717,1758137441007,-151.0,0.00021986,2]
[385931720,1758137441019,-151.0,0.00021986,2]
[385931722,1758137441031,-200.0,0.00021986,2]
[385931724,1758137441041,-151.0,0.00021986,2]
[385931726,1758137441051,-151.0,0.00021986,2]
[385931727,1758137441062,-151.0,0.00021986,2]
[385931729,1758137441074,-151.0,0.00021986,2]
[385931731,1758137441086,-500.0,0.00021986,2]
[385931733,1758137441097,-151.0,0.00021986,2]
[385931735,1758137441109,-500.0,0.00021986,2]
[385931737,1758137441121,-151.0,0.00021986,2]
[385931739,1758137441133,-151.0,0.00021986,2]
[385931741,1758137441145,-151.0,0.00021986,2]
[385931743,1758137441157,-151.0,0.00021986,2]
[385931745,1758137441168,-151.0,0.00021986,2]
[385931747,1758137441179,-151.0,0.00021986,2]
[385931749,1758137441190,-468.29998382,0.00021998,2]
[385931751,1758137441200,-400.0,0.00021998,2]
[385931753,1758137441210,-400.0,0.00021998,2]
[385931755,1758137441222,-549.7024366,0.00021998,2]
[385931757,1758137441234,-400.0,0.00021998,2]
[385931759,1758137441245,-400.0,0.00021998,2]
[385931761,1758137441257,-400.0,0.00021998,2]
[385931763,1758137441269,-400.0,0.00021998,2]
[385931765,1758137441281,-413.3090985,0.00021998,2]
[385931767,1758137441292,-400.0,0.00021998,2]
[385931769,1758137441303,-575.48,0.00021998,2]
[385931771,1758137441315,-400.0,0.00021998,2]
[385931773,1758137441327,-400.0,0.00021998,2]
[385931775,1758137441338,-400.0,0.00021998,2]
[385931777,1758137441350,-765.76,0.00021998,2]
[385931779,1758137441361,-400.0,0.00021998,2]
[385931781,1758137441371,-400.0,0.00021998,2]
[385931783,1758137441384,-400.0,0.00021998,2]
[385931785,1758137441395,-400.0,0.00021998,2]
[385931787,1758137441407,-400.0,0.00021998,2]
[385931790,1758137441420,-400.0,0.00021998,2]
[385931791,1758137441431,-177.139291,0.00021998,2]
[385931793,1758137441442,-244.040939,0.00021998,2]
[385931795,1758137441454,-386.251879,0.00021998,2]
[385931797,1758137441465,-1073.87,0.00021998,2]
[385931799,1758137441476,-400.0,0.00021998,2]
[385931801,1758137441488,-535.0,0.00021998,2]
[385931804,1758137441500,-500.0,0.00021998,2]
[385931806,1758137441513,-400.60494431,0.00021998,2]
[385931808,1758137441524,-400.0,0.00021998,2]
[385931810,1758137441534,-400.0,0.00021998,2]
[385931812,1758137441547,-400.0,0.00021998,2]
[385931814,1758137441557,-542.92,0.00021998,2]
[385931816,1758137441568,-400.0,0.00021998,2]
[385931818,1758137441578,-400.0,0.00021998,2]
[385931820,1758137441587,-400.0,0.00021998,2]
[385931822,1758137441598,-400.0,0.00021998,2]
[385931824,1758137441608,-400.0,0.00021998,2]
[385931826,1758137441619,-400.0,0.00021998,2]
[385931828,1758137441632,-400.0,0.00021998,2]
[385931830,1758137441644,-280.41576252,0.00021998,2]
[385931832,1758137441655,-476.01,0.00021998,2]
[385931834,1758137441666,-400.0,0.00021998,2]
[385931836,1758137441676,-400.0,0.00021998,2]
[385931838,1758137441686,-763.58,0.00021998,2]
[385931840,1758137441697,-500.0,0.00021998,2]
[385931842,1758137441708,-400.0,0.00021998,2]
[385931844,1758137441719,-400.0,0.00021998,2]
[385931846,1758137441732,-400.0,0.00021998,2]
[385931848,1758137441743,-400.0,0.00021998,2]
[385931850,1758137441753,-400.0,0.00021998,2]
[385931852,1758137441764,-449.94,0.00021998,2]
[385931854,1758137441775,-400.0,0.00021998,2]
[385931856,1758137441786,-400.0,0.00021998,2]
[385931858,1758137441796,-402.10972667,0.00021998,2]
[385931860,1758137441807,-400.0,0.00021998,2]
[385931862,1758137441822,-400.0,0.00021998,2]
[385931864,1758137441833,-505.47,0.00021998,2]
[385931866,1758137441844,-400.0,0.00021998,2]
[385931868,1758137441854,-400.0,0.00021998,2]
[385931870,1758137441865,-400.0,0.00021998,2]
[385931872,1758137441876,-400.0,0.00021998,2]
[385931874,1758137441886,-400.0,0.00021998,2]
[385931876,1758137441897,-400.0,0.00021998,2]
[385931879,1758137441916,-400.0,0.00021998,2]
[385931881,1758137441927,-565.74,0.00021998,2]
[385931883,1758137441938,-400.0,0.00021998,2]
[385931885,1758137441950,-500.0,0.00021998,2]
[385931887,1758137441961,-400.0,0.00021998,2]
[385931889,1758137441971,-400.0,0.00021998,2]
[385931891,1758137441982,-400.0,0.00021998,2]
[385931893,1758137441992,-1073.76,0.00021998,2]
[385931895,1758137442003,-400.0,0.00021998,2]
[385931897,1758137442013,-400.0,0.00021998,2]
[385931899,1758137442024,-400.0,0.00021998,2]
[385931901,1758137442035,-400.0,0.00021998,2]
[385931903,1758137442046,-400.0,0.00021998,2]
[385931905,1758137442057,-400.0,0.00021998,2]
[385931907,1758137442067,-455.35,0.00021998,2]
[385931909,1758137442078,-400.0,0.00021998,2]
[385931911,1758137442089,-511.63,0.00021998,2]
[385931913,1758137442099,-972.93,0.00021998,2]
[385931915,1758137442110,-400.0,0.00021998,2]
[385931917,1758137442120,-298.01924116,0.00021998,2]
[385931919,1758137442131,-400.0,0.00021998,2]
[385931921,1758137442142,-400.0,0.00021998,2]
[385931923,1758137442153,-400.0,0.00021998,2]
[385931925,1758137442165,-400.0,0.00021998,2]
[385931927,1758137442175,-7460.96,0.00021998,2]
[385931929,1758137442186,-400.0,0.00021998,2]
[385931931,1758137442196,-400.0,0.00021998,2]
[385931933,1758137442208,-400.0,0.00021998,2]
[385931935,1758137442219,-400.0,0.00021998,2]
[385931937,1758137442229,-210.4774642,0.00021998,2]
[385931938,1758137442240,-400.0,0.00021998,2]
[385931939,1758137442251,-485.76,0.00021998,2]
[385931940,1758137442265,-578.68290828,0.00021998,2]
[385931941,1758137442276,-396.0,0.00021998,2]
[385931942,1758137442286,-238.26567642,0.00021998,2]
[385931943,1758137442298,-152.159124,0.00021999,2]
[385931944,1758137442312,-402.27778372,0.00021999,2]
[385931945,1758137442322,-400.0,0.00021999,2]
[385931946,1758137442333,-400.0,0.00021999,2]
[385931948,1758137442344,-400.0,0.00021999,2]
[385931949,1758137442355,-400.0,0.00021999,2]
[385931952,1758137442366,-548.28222163,0.00021999,2]
[385931954,1758137442376,-400.0,0.00021999,2]
[385931956,1758137442387,-400.0,0.00021999,2]
[385931958,1758137442397,-400.0,0.00021999,2]
[385931960,1758137442408,-400.0,0.00021999,2]
[385931962,1758137442421,-400.0,0.00021999,2]
[385931965,1758137442431,-402.28759649,0.00021999,2]
[385931967,1758137442442,-499.98,0.00021999,2]
[385931969,1758137442452,-400.0,0.00021999,2]
[385931971,1758137442462,-400.0,0.00021999,2]
[385931973,1758137442473,-554.96,0.00021999,2]
[385931975,1758137442483,-400.0,0.00021999,2]
[385931977,1758137442495,-400.0,0.00021999,2]
[385931979,1758137442505,-400.0,0.00021999,2]
[385931982,1758137442516,-500.0,0.00021999,2]
[385931984,1758137442526,-500.0,0.00021999,2]
[385931986,1758137442537,-500.0,0.00021999,2]
[385931988,1758137442547,-400.0,0.00021999,2]
[385931990,1758137442558,-400.0,0.00021999,2]
[385931992,1758137442568,-400.0,0.00021999,2]
[385931994,1758137442578,-400.0,0.00021999,2]
[385931996,1758137442588,-400.0,0.00021999,2]
[385931999,1758137442599,-400.0,0.00021999,2]
[385932001,1758137442609,-400.0,0.00021999,2]
[385932003,1758137442620,-400.0,0.00021999,2]
[385932005,1758137442630,-400.0,0.00021999,2]
[385932007,1758137442641,-400.0,0.00021999,2]
[385932009,1758137442652,-400.0,0.00021999,2]
[385932012,1758137442663,-400.0,0.00021999,2]
[385932014,1758137442674,-400.0,0.00021999,2]
[385932016,1758137442685,-400.0,0.00021999,2]
[385932018,1758137442696,-400.0,0.00021999,2]
[385932020,1758137442707,-400.0,0.00021999,2]
[385932022,1758137442718,-400.0,0.00021999,2]
[385932025,1758137442729,-400.0,0.00021999,2]
[385932027,1758137442739,-400.0,0.00021999,2]
[385932029,1758137442750,-400.0,0.00021999,2]
[385932031,1758137442760,-400.0,0.00021999,2]
[385932033,1758137442771,-400.0,0.00021999,2]
[385932035,1758137442781,-400.0,0.00021999,2]
[385932038,1758137442791,-400.0,0.00021999,2]
[385932040,1758137442802,-400.0,0.00021999,2]
[385932042,1758137442814,-400.0,0.00021999,2]
[385932044,1758137442826,-400.0,0.00021999,2]
[385932046,1758137442837,-400.0,0.00021999,2]
[385932048,1758137442848,-400.0,0.00021999,2]
[385932050,1758137442860,-400.0,0.00021999,2]
[385932053,1758137442871,-400.0,0.00021999,2]
[385932055,1758137442882,-400.0,0.00021999,2]
[385932057,1758137442896,-400.0,0.00021999,2]
[385932059,1758137442907,-400.0,0.00021999,2]
[385932061,1758137442918,-400.0,0.00021999,2]
[385932063,1758137442928,-400.0,0.00021999,2]
[385932067,1758137442939,-400.0,0.00021999,2]
[385932070,1758137442949,-415.33019408,0.00021999,2]
[385932072,1758137442960,-400.0,0.00021999,2]
[385932074,1758137442971,-400.0,0.00021999,2]
[385932076,1758137442981,-400.0,0.00021999,2]
[385932078,1758137442992,-400.0,0.00021999,2]
[385932080,1758137443003,-400.0,0.00021999,2]
[385932084,1758137443013,-407.39070687,0.00021999,2]
[385932087,1758137443024,-400.0,0.00021999,2]
[385932091,1758137443034,-400.0,0.00021999,2]
[385932095,1758137443045,-418.36658176,0.00021999,2]
[385932098,1758137443056,-400.0,0.00021999,2]
[385932101,1758137443068,-400.0,0.00021999,2]
[385932105,1758137443079,-400.0,0.00021999,2]
[385932108,1758137443089,-400.0,0.00021999,2]
[385932111,1758137443100,-400.0,0.00021999,2]
[385932114,1758137443110,-400.0,0.00021999,2]
[385932117,1758137443121,-248.50856585,0.00021999,2]
[385932122,1758137443139,-151.49143415,0.00021999,2]
[385932124,1758137443150,-400.0,0.00021999,2]
[385932127,1758137443162,-400.0,0.00021999,2]
[385932130,1758137443174,-400.0,0.00021999,2]
[385932133,1758137443185,-400.0,0.00021999,2]
[385932135,1758137443196,-400.0,0.00021999,2]
[385932137,1758137443210,-162.59947525,0.00021999,2]
[385932141,1758137443232,-400.0,0.00021917,2]
[385932143,1758137443243,-237.40052475,0.00021999,2]
[385932145,1758137443252,-400.0,0.00021999,2]
[385932147,1758137443263,-524.22623188,0.00021999,2]
[385932149,1758137443273,-400.0,0.00021999,2]
[385932151,1758137443283,-400.0,0.00021999,2]
[385932153,1758137443293,-400.0,0.00021999,2]
[385932155,1758137443303,-400.0,0.00021999,2]
[385932158,1758137443313,-400.0,0.00021999,2]
[385932160,1758137443323,-362.90941492,0.00021999,2]
[385932162,1758137443333,-400.0,0.00021999,2]
[385932164,1758137443343,-400.0,0.00021999,2]
[385932166,1758137443354,-400.0,0.00021999,2]
[385932168,1758137443364,-400.0,0.00021999,2]
[385932171,1758137443375,-400.0,0.00021999,2]
[385932173,1758137443386,-400.0,0.00021999,2]
[385932175,1758137443396,-400.0,0.00021999,2]
[385932177,1758137443407,-400.0,0.00021999,2]
[385932179,1758137443418,-400.0,0.00021999,2]
[385932181,1758137443428,-400.0,0.00021999,2]
[385932183,1758137443438,-400.0,0.00021999,2]
[385932185,1758137443449,-422.78,0.00021999,2]
[385932187,1758137443459,-400.0,0.00021999,2]
[385932189,1758137443470,-711.68,0.00021999,2]
[385932191,1758137443480,-400.59704821,0.00021999,2]
[385932194,1758137443490,-400.0,0.00021999,2]
[385932196,1758137443501,-501.32,0.00021999,2]
[385932198,1758137443511,-510.74240433,0.00021999,2]
[385932200,1758137443521,-400.0,0.00021999,2]
[385932202,1758137443531,-400.0,0.00021999,2]
[385932204,1758137443542,-400.0,0.00021999,2]
[385932206,1758137443552,-400.0,0.00021999,2]
[385932208,1758137443563,-400.0,0.00021999,2]
[385932210,1758137443573,-400.0,0.00021999,2]
[385932213,1758137443584,-400.0,0.00021999,2]
[385932215,1758137443594,-400.0,0.00021999,2]
[385932217,1758137443604,-400.0,0.00021999,2]
[385932219,1758137443615,-400.0,0.00021999,2]
[385932221,1758137443625,-400.0,0.00021999,2]
[385932223,1758137443636,-400.0,0.00021999,2]
[385932225,1758137443646,-400.0,0.00021999,2]
[385932228,1758137443658,-400.0,0.00021999,2]
[385932230,1758137443669,-400.0,0.00021999,2]
[385932232,1758137443680,-25.30440763,0.00021999,2]
[385932245,1758137443790,-412.51559237,0.00021999,2]
[385932247,1758137443800,-400.0,0.00021999,2]
[385932249,1758137443810,-400.0,0.00021999,2]
[385932251,1758137443823,-400.0,0.00021999,2]
[385932253,1758137443833,-400.0,0.00021999,2]
[385932255,1758137443844,-400.0,0.00021999,2]
[385932257,1758137443854,-400.0,0.00021999,2]
[385932260,1758137443864,-323.604996,0.00021999,2]
[385932262,1758137443877,-76.395004,0.00021999,2]
[385932264,1758137443887,-400.0,0.00021999,2]
[385932266,1758137443897,-400.0,0.00021999,2]
[385932268,1758137443907,-400.0,0.00021999,2]
[385932270,1758137443918,-400.0,0.00021999,2]
[385932273,1758137443928,-468.8,0.00021999,2]
[385932275,1758137443939,-400.0,0.00021999,2]
[385932278,1758137443949,-939.92,0.00021999,2]
[385932280,1758137443959,-400.0,0.00021999,2]
[385932282,1758137443969,-462.35,0.00021999,2]
[385932284,1758137443980,-1108.83,0.00021999,2]
[385932286,1758137443990,-821.06,0.00021999,2]
[385932288,1758137444000,-587.56,0.00021999,2]
[385932290,1758137444010,-820.14,0.00021999,2]
[385932292,1758137444020,-1781.73,0.00021999,2]
[385932294,1758137444031,-564.62,0.00021999,2]
[385932296,1758137444040,-400.0,0.00021999,2]
[385932299,1758137444051,-400.0,0.00021999,2]
[385932301,1758137444061,-454.8,0.00021999,2]
[385932303,1758137444072,-400.0,0.00021999,2]
[385932305,1758137444083,-400.0,0.00021999,2]
[385932307,1758137444094,-419.62,0.00021999,2]
[385932309,1758137444104,-514.56,0.00021999,2]
[385932312,1758137444115,-471.22,0.00021999,2]
[385932314,1758137444125,-443.87,0.00021999,2]
[385932316,1758137444135,-719.15,0.00021999,2]
[385932318,1758137444145,-411.01,0.00021999,2]
[385932320,1758137444155,-546.46,0.00021999,2]
[385932322,1758137444167,-400.0,0.00021999,2]
[385932324,1758137444177,-769.33,0.00021999,2]
[385932326,1758137444188,-450.77,0.00021999,2]
[385932329,1758137444199,-1734.54,0.00021999,2]
[385932331,1758137444210,-1923.29,0.00021999,2]
[385932333,1758137444221,-400.0,0.00021999,2]
[385932335,1758137444231,-400.0,0.00021999,2]
[385932337,1758137444241,-411.58,0.00021999,2]
[385932339,1758137444251,-431.89,0.00021999,2]
[385932341,1758137444261,-733.95,0.00021999,2]
[385932343,1758137444272,-400.0,0.00021999,2]
[385932345,1758137444282,-3546.51,0.00021999,2]
[385932348,1758137444294,-935.65,0.00021999,2]
[385932350,1758137444304,-400.0,0.00021999,2]
[385932352,1758137444315,-467.894996,0.00021999,2]
[385932354,1758137444328,-490.035004,0.00021999,2]
[385932356,1758137444339,-400.0,0.00021999,2]
[385932359,1758137444349,-405.32,0.00021999,2]
[385932416,1758137444967,-489.76,0.00021999,2]
[385932420,1758137444987,-535.24,0.00021999,2]
[385932422,1758137445000,-400.0,0.00021999,2]
[385932424,1758137445009,-500.0,0.00021999,2]
[385932426,1758137445019,-491.18,0.00021999,2]
[385932428,1758137445029,-780.29,0.00021999,2]
[385932430,1758137445039,-400.0,0.00021999,2]
[385932432,1758137445049,-400.0,0.00021999,2]
[385932434,1758137445058,-647.97,0.00021999,2]
[385932436,1758137445068,-1559.37,0.00021999,2]
[385932438,1758137445077,-737.61,0.00021999,2]
[385932441,1758137445087,-458.03869639,0.00021999,2]
[385932443,1758137445096,-1000.0,0.00021999,2]
[385932445,1758137445105,-568.29,0.00021999,2]
[385932447,1758137445115,-976.6,0.00021999,2]
[385932449,1758137445124,-777.44,0.00021999,2]
[385932451,1758137445133,-110.89073194,0.00021999,2]
[385932454,1758137445157,-614.45926806,0.00021999,2]
[385932456,1758137445167,-400.0,0.00021999,2]
[385932458,1758137445177,-495.5407013,0.00021999,2]
[385932461,1758137445191,-407.6292987,0.00021999,2]
[385932463,1758137445200,-876.26,0.00021999,2]
[385932465,1758137445212,-680.77,0.00021999,2]
[385932467,1758137445222,-492.09,0.00021999,2]
[385932469,1758137445231,-883.58,0.00021999,2]
[385932471,1758137445241,-400.0,0.00021999,2]
[385932473,1758137445250,-400.0,0.00021999,2]
[385932475,1758137445259,-512.24,0.00021999,2]
[385932477,1758137445269,-400.0,0.00021999,2]
[385932479,1758137445278,-3218.82,0.00021999,2]
[385932481,1758137445287,-600.0,0.0002211,2]
[385932483,1758137445297,-158.61070134,0.00022171,2]
[385932485,1758137445308,-241.38929866,0.00022171,2]
[385932487,1758137445317,-400.0,0.00022172,2]
[385932489,1758137445327,-400.0,0.00022172,2]
[385932491,1758137445336,-400.0,0.00022172,2]
[385932493,1758137445346,-400.0,0.00022172,2]
[385932495,1758137445355,-400.0,0.00022172,2]
[385932497,1758137445365,-400.0,0.00022172,2]
[385932499,1758137445374,-400.0,0.00022172,2]
[385932501,1758137445383,-400.0,0.00022172,2]
[385932503,1758137445393,-400.0,0.00022172,2]
[385932505,1758137445403,-400.0,0.00022172,2]
[385932507,1758137445412,-488.59,0.00022172,2]
[385932509,1758137445423,-400.0,0.00022172,2]
[385932511,1758137445433,-400.0,0.00022172,2]
[385932513,1758137445442,-269.52070134,0.00022172,2]
[385932597,1758137446186,-130.47929866,0.00022172,2]
[385932599,1758137446196,-400.0,0.00022172,2]
[385932601,1758137446206,-239.91754697,0.00022172,2]
[385932609,1758137446264,-195.84245303,0.00022172,2]
[385932611,1758137446273,-400.0,0.00022172,2]
[385932612,1758137446283,-400.0,0.00022172,2]
[385932615,1758137446292,-400.0,0.00022172,2]
[385932617,1758137446302,-400.0,0.00022172,2]
[385932619,1758137446312,-400.0,0.00022172,2]
[385932620,1758137446321,-400.0,0.00022172,2]
[385932623,1758137446331,-400.0,0.00022172,2]
[385932625,1758137446341,-400.0,0.00022172,2]